[Event "Titled Tuesday Blitz February 07 Late 2023"]
[White "Nilsen, Tobias Lang"]
[Black "Osmonbekov, Talaibek"]
[WhiteFideId "1521624"]
[BlackFideId "2017253"]
[WhiteElo "2247"]
[BlackElo "2137"]
[Result "0-1"]
[Round "09"]
[TimeControl "180+2"]
[Date "2023.02.07"]
[WhiteClock "0:00:46"]
[BlackClock "0:00:16"]

1. e4 {[%clk 0:03:00]}  c5 {[%clk 0:02:57]} 2. Nf3 {[%clk 0:03:01]}  d6 {[%clk 0:02:57]} 3. d4 {[%clk 0:03:01]}  cxd4 {[%clk 0:02:58]} 4. Qxd4 {[%clk 0:03:02]}  Nc6 {[%clk 0:02:57]} 5. Bb5 {[%clk 0:03:02]}  Bd7 {[%clk 0:02:57]} 6. Bxc6 {[%clk 0:03:03]}  bxc6 {[%clk 0:02:57]} 7. Nc3 {[%clk 0:03:03]}  Qb6 {[%clk 0:02:56]} 8. Qxb6 {[%clk 0:02:58]}  axb6 {[%clk 0:02:56]} 9. Be3 {[%clk 0:02:56]}  Ra6 {[%clk 0:02:49]} 10. O-O {[%clk 0:02:55]}  e6 {[%clk 0:02:43]} 11. Rfd1 {[%clk 0:02:54]}  Nf6 {[%clk 0:02:42]} 12. h3 {[%clk 0:02:51]}  Be7 {[%clk 0:02:41]} 13. Nd2 {[%clk 0:02:50]}  b5 {[%clk 0:02:37]} 14. a3 {[%clk 0:02:49]}  O-O {[%clk 0:02:36]} 15. Nf3 {[%clk 0:02:40]}  Rfa8 {[%clk 0:02:29]} 16. Rab1 {[%clk 0:02:30]}  Be8 {[%clk 0:02:27]} 17. e5 {[%clk 0:02:23]}  Nd5 {[%clk 0:02:25]} 18. Nxd5 {[%clk 0:02:23]}  exd5 {[%clk 0:02:18]} 19. exd6 {[%clk 0:02:22]}  Bxd6 {[%clk 0:02:19]} 20. Nd4 {[%clk 0:02:22]}  g6 {[%clk 0:02:18]} 21. Nb3 {[%clk 0:02:23]}  R6a7 {[%clk 0:02:06]} 22. Bxa7 {[%clk 0:02:21]}  Rxa7 {[%clk 0:02:05]} 23. Re1 {[%clk 0:02:22]}  Kf8 {[%clk 0:02:05]} 24. Re2 {[%clk 0:02:19]}  Bd7 {[%clk 0:02:04]} 25. Rbe1 {[%clk 0:02:20]}  c5 {[%clk 0:02:00]} 26. Rd1 {[%clk 0:02:17]}  Be6 {[%clk 0:01:56]} 27. Nc1 {[%clk 0:02:13]}  d4 {[%clk 0:01:44]} 28. Nd3 {[%clk 0:02:11]}  Bc4 {[%clk 0:01:37]} 29. Ree1 {[%clk 0:02:10]}  f6 {[%clk 0:01:34]} 30. Nc1 {[%clk 0:01:52]}  Be5 {[%clk 0:01:21]} 31. Nd3 {[%clk 0:01:51]}  Bd6 {[%clk 0:01:21]} 32. Rd2 {[%clk 0:01:38]}  Kf7 {[%clk 0:01:17]} 33. Rde2 {[%clk 0:01:36]}  b4 {[%clk 0:01:11]} 34. axb4 {[%clk 0:01:35]}  cxb4 {[%clk 0:01:11]} 35. b3 {[%clk 0:01:35]}  Bxd3 {[%clk 0:01:09]} 36. cxd3 {[%clk 0:01:36]}  Ra3 {[%clk 0:01:08]} 37. Rb1 {[%clk 0:01:36]}  h5 {[%clk 0:00:51]} 38. Rc2 {[%clk 0:01:35]}  Ke6 {[%clk 0:00:51]} 39. Rc8 {[%clk 0:01:31]}  g5 {[%clk 0:00:46]} 40. Kf1 {[%clk 0:01:30]}  h4 {[%clk 0:00:46]} 41. Rc2 {[%clk 0:01:29]}  Kd5 {[%clk 0:00:45]} 42. Ke2 {[%clk 0:01:29]}  Ra8 {[%clk 0:00:43]} 43. Kf3 {[%clk 0:01:29]}  f5 {[%clk 0:00:42]} 44. g3 {[%clk 0:01:28]}  hxg3 {[%clk 0:00:39]} 45. fxg3 {[%clk 0:01:29]}  Rh8 {[%clk 0:00:39]} 46. Rh1 {[%clk 0:01:24]}  Re8 {[%clk 0:00:31]} 47. Re2 {[%clk 0:01:18]}  Rc8 {[%clk 0:00:32]} 48. h4 {[%clk 0:01:16]}  g4+ {[%clk 0:00:32]} 49. Kg2 {[%clk 0:01:13]}  Rc3 {[%clk 0:00:32]} 50. Rd2 {[%clk 0:01:13]}  f4 {[%clk 0:00:27]} 51. gxf4 {[%clk 0:01:11]}  Bxf4 {[%clk 0:00:27]} 52. Rdd1 {[%clk 0:01:12]}  Rc2+ {[%clk 0:00:20]} 53. Kf1 {[%clk 0:01:09]}  g3 {[%clk 0:00:19]} 54. Rg1 {[%clk 0:01:07]}  Rh2 {[%clk 0:00:17]} 55. Re1 {[%clk 0:00:46]}  Rf2# {[%clk 0:00:16]} 0-1


[Site "https://www.chess.com"]

[Event "Titled Tuesday Blitz February 07 Late 2023"]
[White "Cueto, Jonny"]
[Black "Sarkar, Justin"]
[WhiteFideId "3300145"]
[BlackFideId "2010011"]
[WhiteElo "2122"]
[BlackElo "2309"]
[Result "0-1"]
[Round "09"]
[TimeControl "180+2"]
[Date "2023.02.07"]
[WhiteClock "0:00:02"]
[BlackClock "0:00:17"]

1. d4 {[%clk 0:03:00]}  Nf6 {[%clk 0:02:56]} 2. Bf4 {[%clk 0:02:59]}  d5 {[%clk 0:02:41]} 3. e3 {[%clk 0:02:58]}  c5 {[%clk 0:02:38]} 4. Nf3 {[%clk 0:02:58]}  Nc6 {[%clk 0:02:21]} 5. Nbd2 {[%clk 0:02:58]}  g6 {[%clk 0:02:04]} 6. h4 {[%clk 0:02:53]}  Bg7 {[%clk 0:02:02]} 7. c3 {[%clk 0:02:51]}  Qb6 {[%clk 0:01:55]} 8. Qc1 {[%clk 0:02:19]}  Bf5 {[%clk 0:01:50]} 9. Ne5 {[%clk 0:02:11]}  Ne4 {[%clk 0:01:17]} 10. Nxe4 {[%clk 0:02:00]}  dxe4 {[%clk 0:01:10]} 11. Nxc6 {[%clk 0:01:36]}  Qxc6 {[%clk 0:01:10]} 12. Qd2 {[%clk 0:01:37]}  h5 {[%clk 0:01:01]} 13. Be2 {[%clk 0:01:34]}  O-O {[%clk 0:00:58]} 14. g4 {[%clk 0:01:30]}  Bxg4 {[%clk 0:00:53]} 15. Bxg4 {[%clk 0:01:30]}  hxg4 {[%clk 0:00:53]} 16. h5 {[%clk 0:01:31]}  cxd4 {[%clk 0:00:44]} 17. exd4 {[%clk 0:01:15]}  e3 {[%clk 0:00:40]} 18. Qxe3 {[%clk 0:00:37]}  Qxh1+ {[%clk 0:00:39]} 19. Kd2 {[%clk 0:00:38]}  Qxa1 {[%clk 0:00:38]} 20. hxg6 {[%clk 0:00:30]}  fxg6 {[%clk 0:00:35]} 21. Qe6+ {[%clk 0:00:21]}  Rf7 {[%clk 0:00:34]} 22. Kc2 {[%clk 0:00:20]}  Qf1 {[%clk 0:00:31]} 23. Be3 {[%clk 0:00:20]}  Qe2+ {[%clk 0:00:30]} 24. Kb3 {[%clk 0:00:17]}  Rd8 {[%clk 0:00:27]} 25. a3 {[%clk 0:00:17]}  Rd6 {[%clk 0:00:23]} 26. Qc8+ {[%clk 0:00:17]}  Rf8 {[%clk 0:00:23]} 27. Qc5 {[%clk 0:00:14]}  Rb6+ {[%clk 0:00:18]} 28. Ka4 {[%clk 0:00:13]}  Qc2+ {[%clk 0:00:17]} 29. Ka5 {[%clk 0:00:08]}  Ra6+ {[%clk 0:00:17]} 30. Kb5 {[%clk 0:00:02]}  Qa4# {[%clk 0:00:17]} 0-1


[Site "https://www.chess.com"]

[Event "Titled Tuesday Blitz February 07 Late 2023"]
[White "Seletsky, Grigory"]
[Black "Jeziel_Vale"]
[WhiteFideId "14112191"]
[WhiteElo "2259"]
[BlackElo "2276"]
[Result "1-0"]
[Round "09"]
[TimeControl "180+2"]
[Date "2023.02.07"]
[WhiteClock "0:00:29"]
[BlackClock "0:00:02"]

1. e4 {[%clk 0:02:55]}  c5 {[%clk 0:03:00]} 2. Nf3 {[%clk 0:02:53]}  d6 {[%clk 0:03:00]} 3. c3 {[%clk 0:02:52]}  Nf6 {[%clk 0:03:00]} 4. Bd3 {[%clk 0:02:51]}  Nc6 {[%clk 0:02:51]} 5. Bc2 {[%clk 0:02:51]}  Bg4 {[%clk 0:02:44]} 6. h3 {[%clk 0:02:51]}  Bxf3 {[%clk 0:02:43]} 7. Qxf3 {[%clk 0:02:50]}  e6 {[%clk 0:02:40]} 8. O-O {[%clk 0:02:50]}  Be7 {[%clk 0:02:40]} 9. Qd1 {[%clk 0:02:48]}  Rc8 {[%clk 0:02:37]} 10. Re1 {[%clk 0:02:41]}  O-O {[%clk 0:02:37]} 11. d4 {[%clk 0:02:38]}  cxd4 {[%clk 0:02:36]} 12. cxd4 {[%clk 0:02:38]}  Nxd4 {[%clk 0:02:34]} 13. Qxd4 {[%clk 0:02:38]}  Rxc2 {[%clk 0:02:34]} 14. Nc3 {[%clk 0:02:38]}  Qb6 {[%clk 0:02:25]} 15. Qxb6 {[%clk 0:02:37]}  axb6 {[%clk 0:02:26]} 16. Rd1 {[%clk 0:02:33]}  Rd8 {[%clk 0:02:21]} 17. Rd2 {[%clk 0:02:24]}  Rxd2 {[%clk 0:02:18]} 18. Bxd2 {[%clk 0:02:24]}  b5 {[%clk 0:02:18]} 19. f3 {[%clk 0:02:23]}  b4 {[%clk 0:02:16]} 20. Nb5 {[%clk 0:02:15]}  d5 {[%clk 0:02:15]} 21. e5 {[%clk 0:02:15]}  Nd7 {[%clk 0:02:14]} 22. f4 {[%clk 0:02:13]}  Rc8 {[%clk 0:02:14]} 23. Rc1 {[%clk 0:02:07]}  Rxc1+ {[%clk 0:02:14]} 24. Bxc1 {[%clk 0:02:07]}  f6 {[%clk 0:02:14]} 25. exf6 {[%clk 0:02:06]}  Nxf6 {[%clk 0:02:11]} 26. Kf1 {[%clk 0:01:59]}  Ne4 {[%clk 0:02:07]} 27. Ke2 {[%clk 0:01:57]}  Bf6 {[%clk 0:01:52]} 28. g4 {[%clk 0:01:53]}  g6 {[%clk 0:01:50]} 29. Nc7 {[%clk 0:01:38]}  Kf7 {[%clk 0:01:48]} 30. f5 {[%clk 0:01:39]}  gxf5 {[%clk 0:01:38]} 31. gxf5 {[%clk 0:01:39]}  Ng3+ {[%clk 0:01:38]} 32. Kd3 {[%clk 0:01:38]}  Nxf5 {[%clk 0:01:38]} 33. b3 {[%clk 0:01:38]}  Be5 {[%clk 0:01:27]} 34. Nb5 {[%clk 0:01:37]}  Nd6 {[%clk 0:01:22]} 35. Nc7 {[%clk 0:01:21]}  Ne4 {[%clk 0:01:19]} 36. Nb5 {[%clk 0:01:13]}  Nf2+ {[%clk 0:01:18]} 37. Ke2 {[%clk 0:01:11]}  Nxh3 {[%clk 0:01:18]} 38. Bd2 {[%clk 0:01:11]}  Nf4+ {[%clk 0:01:17]} 39. Ke3 {[%clk 0:01:08]}  h5 {[%clk 0:01:00]} 40. Bxb4 {[%clk 0:01:07]}  h4 {[%clk 0:00:59]} 41. Nd6+ {[%clk 0:01:06]}  Bxd6 {[%clk 0:00:41]} 42. Bxd6 {[%clk 0:01:05]}  Ng6 {[%clk 0:00:40]} 43. a4 {[%clk 0:01:04]}  e5 {[%clk 0:00:39]} 44. b4 {[%clk 0:00:59]}  Ke6 {[%clk 0:00:39]} 45. Bc5 {[%clk 0:00:54]}  h3 {[%clk 0:00:35]} 46. Kf3 {[%clk 0:00:49]}  Nf4 {[%clk 0:00:30]} 47. Kg3 {[%clk 0:00:48]}  d4 {[%clk 0:00:27]} 48. a5 {[%clk 0:00:46]}  Kd5 {[%clk 0:00:22]} 49. Bb6 {[%clk 0:00:46]}  Kc6 {[%clk 0:00:12]} 50. Ba7 {[%clk 0:00:42]}  Kb5 {[%clk 0:00:09]} 51. Bb8 {[%clk 0:00:40]}  Nd3 {[%clk 0:00:06]} 52. Kxh3 {[%clk 0:00:38]}  Kxb4 {[%clk 0:00:06]} 53. Bc7 {[%clk 0:00:38]}  Kb5 {[%clk 0:00:05]} 54. Kg2 {[%clk 0:00:37]}  e4 {[%clk 0:00:05]} 55. Bd8 {[%clk 0:00:35]}  Nc5 {[%clk 0:00:05]} 56. Bf6 {[%clk 0:00:35]}  d3 {[%clk 0:00:05]} 57. Kf2 {[%clk 0:00:34]}  Kc4 {[%clk 0:00:05]} 58. Ke3 {[%clk 0:00:33]}  Kd5 {[%clk 0:00:04]} 59. Be7 {[%clk 0:00:33]}  Nb3 {[%clk 0:00:04]} 60. Bb4 {[%clk 0:00:33]}  d2 {[%clk 0:00:02]} 61. Bxd2 {[%clk 0:00:28]}  Nxd2 {[%clk 0:00:02]} 62. Kxd2 {[%clk 0:00:28]}  Kd4 {[%clk 0:00:02]} 63. Ke2 {[%clk 0:00:29]} 1-0


[Site "https://www.chess.com"]

[Event "Titled Tuesday Blitz February 07 Late 2023"]
[White "Mazurkiewicz, Michal"]
[Black "Talbi, Chafik"]
[WhiteFideId "1124943"]
[BlackFideId "7903715"]
[WhiteElo "2145"]
[BlackElo "2224"]
[Result "1-0"]
[Round "09"]
[TimeControl "180+2"]
[Date "2023.02.07"]
[WhiteClock "0:01:57"]
[BlackClock "0:00:49"]

1. e4 {[%clk 0:02:58]}  d6 {[%clk 0:02:56]} 2. d4 {[%clk 0:02:57]}  e5 {[%clk 0:02:56]} 3. dxe5 {[%clk 0:02:56]}  dxe5 {[%clk 0:02:57]} 4. Qxd8+ {[%clk 0:02:55]}  Kxd8 {[%clk 0:02:58]} 5. Bc4 {[%clk 0:02:54]}  f6 {[%clk 0:02:57]} 6. Nc3 {[%clk 0:02:52]}  c6 {[%clk 0:02:57]} 7. f3 {[%clk 0:02:51]}  Bc5 {[%clk 0:02:55]} 8. Nh3 {[%clk 0:02:49]}  Ke7 {[%clk 0:02:46]} 9. Nf2 {[%clk 0:02:49]}  Be6 {[%clk 0:02:46]} 10. Bxe6 {[%clk 0:02:48]}  Kxe6 {[%clk 0:02:47]} 11. Nd3 {[%clk 0:02:49]}  Bd4 {[%clk 0:02:44]} 12. Ke2 {[%clk 0:02:45]}  Nd7 {[%clk 0:02:40]} 13. Be3 {[%clk 0:02:45]}  Bxc3 {[%clk 0:02:21]} 14. bxc3 {[%clk 0:02:45]}  b5 {[%clk 0:02:17]} 15. a4 {[%clk 0:02:43]}  Ne7 {[%clk 0:02:12]} 16. axb5 {[%clk 0:02:41]}  cxb5 {[%clk 0:02:12]} 17. Ra6+ {[%clk 0:02:36]}  Kf7 {[%clk 0:02:11]} 18. Bxa7 {[%clk 0:02:32]}  Rhc8 {[%clk 0:02:08]} 19. Kd2 {[%clk 0:02:19]}  Rc7 {[%clk 0:01:45]} 20. Rha1 {[%clk 0:02:17]}  Nc6 {[%clk 0:01:35]} 21. Be3 {[%clk 0:02:12]}  Rxa6 {[%clk 0:01:28]} 22. Rxa6 {[%clk 0:02:13]}  Ke7 {[%clk 0:01:20]} 23. Nb4 {[%clk 0:02:11]}  Nxb4 {[%clk 0:01:19]} 24. cxb4 {[%clk 0:02:12]}  Rc4 {[%clk 0:01:08]} 25. c3 {[%clk 0:02:09]}  Rc7 {[%clk 0:01:06]} 26. Kd3 {[%clk 0:02:08]}  Nb8 {[%clk 0:00:58]} 27. Rb6 {[%clk 0:02:03]}  Rd7+ {[%clk 0:00:50]} 28. Kc2 {[%clk 0:01:57]}  Nc6 {[%clk 0:00:49]} 29. Rxc6 {[%clk 0:01:57]} 1-0


[Site "https://www.chess.com"]

[Event "Titled Tuesday Blitz February 07 Late 2023"]
[White "Tinmaz, Kerem"]
[Black "Matko, Ognjen"]
[WhiteFideId "44559151"]
[BlackFideId "14509717"]
[WhiteElo "2177"]
[BlackElo "2295"]
[Result "0-1"]
[Round "09"]
[TimeControl "180+2"]
[Date "2023.02.07"]
[WhiteClock "0:00:03"]
[BlackClock "0:00:53"]

1. e4 {[%clk 0:03:00]}  e5 {[%clk 0:02:59]} 2. Nf3 {[%clk 0:03:01]}  Nc6 {[%clk 0:02:59]} 3. Bb5 {[%clk 0:03:01]}  a6 {[%clk 0:02:59]} 4. Bxc6 {[%clk 0:03:01]}  dxc6 {[%clk 0:03:00]} 5. O-O {[%clk 0:03:02]}  Bg4 {[%clk 0:02:58]} 6. h3 {[%clk 0:03:01]}  h5 {[%clk 0:02:58]} 7. d3 {[%clk 0:03:02]}  Qf6 {[%clk 0:02:58]} 8. Be3 {[%clk 0:03:02]}  Ne7 {[%clk 0:02:57]} 9. Nbd2 {[%clk 0:03:02]}  Ng6 {[%clk 0:02:56]} 10. hxg4 {[%clk 0:02:58]}  hxg4 {[%clk 0:02:48]} 11. Ng5 {[%clk 0:02:59]}  Nf4 {[%clk 0:02:39]} 12. Bxf4 {[%clk 0:01:34]}  Qxf4 {[%clk 0:02:37]} 13. g3 {[%clk 0:01:25]}  Qxg5 {[%clk 0:02:32]} 14. Kg2 {[%clk 0:01:26]}  Bc5 {[%clk 0:02:23]} 15. Nc4 {[%clk 0:00:58]}  O-O-O {[%clk 0:02:20]} 16. b4 {[%clk 0:00:41]}  Ba7 {[%clk 0:02:16]} 17. Rh1 {[%clk 0:00:30]}  f5 {[%clk 0:02:06]} 18. Nxe5 {[%clk 0:00:16]}  Qf6 {[%clk 0:01:26]} 19. Nc4 {[%clk 0:00:06]}  Rxh1 {[%clk 0:01:20]} 20. Qxh1 {[%clk 0:00:06]}  fxe4 {[%clk 0:01:19]} 21. Rf1 {[%clk 0:00:03]}  exd3 {[%clk 0:01:13]} 22. cxd3 {[%clk 0:00:04]}  Rxd3 {[%clk 0:01:03]} 23. Qh5 {[%clk 0:00:03]}  Qf3+ {[%clk 0:00:59]} 24. Kh2 {[%clk 0:00:04]}  Rd5 {[%clk 0:00:53]} 25. Qe8+ {[%clk 0:00:03]}  Rd8 {[%clk 0:00:53]} 26. Qe6+ {[%clk 0:00:03]}  Kb8 {[%clk 0:00:53]} 0-1


[Site "https://www.chess.com"]

[Event "Titled Tuesday Blitz February 07 Late 2023"]
[White "Tobares, Leandro"]
[Black "Battlecruiser_Operational"]
[WhiteFideId "106402"]
[WhiteElo "2189"]
[BlackElo "2371"]
[Result "1-0"]
[Round "09"]
[TimeControl "180+2"]
[Date "2023.02.07"]
[WhiteClock "0:00:54"]
[BlackClock "0:00:01"]

1. c4 {[%clk 0:03:00]}  c6 {[%clk 0:02:57]} 2. Nc3 {[%clk 0:03:00]}  d5 {[%clk 0:02:50]} 3. d4 {[%clk 0:03:00]}  Nf6 {[%clk 0:02:49]} 4. e3 {[%clk 0:03:00]}  a6 {[%clk 0:02:47]} 5. Nf3 {[%clk 0:02:58]}  Bf5 {[%clk 0:02:44]} 6. Bd3 {[%clk 0:02:51]}  Bg6 {[%clk 0:02:44]} 7. O-O {[%clk 0:02:49]}  e6 {[%clk 0:02:42]} 8. b3 {[%clk 0:02:48]}  Nbd7 {[%clk 0:02:41]} 9. Bb2 {[%clk 0:02:47]}  Bd6 {[%clk 0:02:37]} 10. Qc2 {[%clk 0:02:44]}  O-O {[%clk 0:02:11]} 11. Bxg6 {[%clk 0:02:41]}  hxg6 {[%clk 0:02:12]} 12. e4 {[%clk 0:02:41]}  dxe4 {[%clk 0:02:08]} 13. Nxe4 {[%clk 0:02:40]}  Nxe4 {[%clk 0:02:08]} 14. Qxe4 {[%clk 0:02:39]}  Rc8 {[%clk 0:02:07]} 15. Rad1 {[%clk 0:02:34]}  Re8 {[%clk 0:02:01]} 16. Ne5 {[%clk 0:02:28]}  Rc7 {[%clk 0:01:32]} 17. Rd3 {[%clk 0:02:25]}  Nf6 {[%clk 0:00:58]} 18. Qf3 {[%clk 0:02:21]}  Qe7 {[%clk 0:00:47]} 19. Rfd1 {[%clk 0:02:15]}  Ba3 {[%clk 0:00:27]} 20. Bxa3 {[%clk 0:02:08]}  Qxa3 {[%clk 0:00:28]} 21. Qe2 {[%clk 0:02:03]}  Rd8 {[%clk 0:00:27]} 22. c5 {[%clk 0:01:51]}  Nd5 {[%clk 0:00:22]} 23. Nc4 {[%clk 0:01:50]}  Qb4 {[%clk 0:00:20]} 24. Qe5 {[%clk 0:01:45]}  Rcd7 {[%clk 0:00:18]} 25. Rh3 {[%clk 0:01:43]}  Nf6 {[%clk 0:00:15]} 26. Nd6 {[%clk 0:01:39]}  b6 {[%clk 0:00:15]} 27. Qg5 {[%clk 0:01:33]}  Rxd6 {[%clk 0:00:13]} 28. cxd6 {[%clk 0:01:31]}  Rxd6 {[%clk 0:00:14]} 29. Qh4 {[%clk 0:01:29]}  Kf8 {[%clk 0:00:13]} 30. Qh8+ {[%clk 0:01:28]}  Ke7 {[%clk 0:00:13]} 31. Qxg7 {[%clk 0:01:26]}  Rxd4 {[%clk 0:00:13]} 32. Rf1 {[%clk 0:01:25]}  Rf4 {[%clk 0:00:12]} 33. Rh8 {[%clk 0:01:23]}  Nd7 {[%clk 0:00:11]} 34. Qg8 {[%clk 0:01:20]}  Qd2 {[%clk 0:00:10]} 35. Qd8+ {[%clk 0:01:16]}  Kd6 {[%clk 0:00:10]} 36. Re8 {[%clk 0:01:14]}  Rd4 {[%clk 0:00:02]} 37. Re7 {[%clk 0:01:12]}  Kc5 {[%clk 0:00:03]} 38. Rxf7 {[%clk 0:01:12]}  Kb4 {[%clk 0:00:03]} 39. Rxd7 {[%clk 0:01:08]}  Rxd7 {[%clk 0:00:04]} 40. Qxb6+ {[%clk 0:01:08]}  Ka3 {[%clk 0:00:03]} 41. Qxc6 {[%clk 0:01:05]}  Kxa2 {[%clk 0:00:03]} 42. Qxe6 {[%clk 0:01:04]}  a5 {[%clk 0:00:02]} 43. b4+ {[%clk 0:01:03]}  Ka3 {[%clk 0:00:02]} 44. bxa5 {[%clk 0:01:03]}  Rd6 {[%clk 0:00:02]} 45. Qe7 {[%clk 0:01:01]}  Ka4 {[%clk 0:00:02]} 46. Ra1+ {[%clk 0:00:59]}  Kb5 {[%clk 0:00:01]} 47. Qb7+ {[%clk 0:00:58]}  Kc4 {[%clk 0:00:01]} 48. g3 {[%clk 0:00:57]}  Qd4 {[%clk 0:00:01]} 49. Qc7+ {[%clk 0:00:54]} 1-0


[Site "https://www.chess.com"]

[Event "Titled Tuesday Blitz February 07 Late 2023"]
[White "Gatterer, Florian"]
[Black "Smith, Garrett L"]
[WhiteFideId "811688"]
[BlackFideId "2024829"]
[WhiteElo "2170"]
[BlackElo "2047"]
[Result "0-1"]
[Round "09"]
[TimeControl "180+2"]
[Date "2023.02.07"]
[WhiteClock "0:00:03"]
[BlackClock "0:00:58"]

1. e4 {[%clk 0:03:00]}  c5 {[%clk 0:03:00]} 2. d4 {[%clk 0:02:59]}  cxd4 {[%clk 0:03:00]} 3. c3 {[%clk 0:03:00]}  dxc3 {[%clk 0:03:00]} 4. Nxc3 {[%clk 0:03:00]}  Nc6 {[%clk 0:03:01]} 5. Bc4 {[%clk 0:03:00]}  d6 {[%clk 0:03:02]} 6. Nf3 {[%clk 0:02:56]}  a6 {[%clk 0:03:02]} 7. O-O {[%clk 0:02:50]}  Nf6 {[%clk 0:03:02]} 8. Bf4 {[%clk 0:02:50]}  Bg4 {[%clk 0:02:59]} 9. h3 {[%clk 0:02:48]}  Bxf3 {[%clk 0:02:58]} 10. Qxf3 {[%clk 0:02:49]}  e6 {[%clk 0:02:57]} 11. Rfd1 {[%clk 0:02:45]}  Qb8 {[%clk 0:02:55]} 12. Rac1 {[%clk 0:02:38]}  Be7 {[%clk 0:02:45]} 13. Bb3 {[%clk 0:02:15]}  O-O {[%clk 0:02:44]} 14. a3 {[%clk 0:02:15]}  Ne5 {[%clk 0:02:41]} 15. Qe2 {[%clk 0:02:04]}  b5 {[%clk 0:02:40]} 16. Be3 {[%clk 0:01:58]}  b4 {[%clk 0:02:39]} 17. axb4 {[%clk 0:01:43]}  Qxb4 {[%clk 0:02:38]} 18. Qc2 {[%clk 0:01:42]}  Rab8 {[%clk 0:02:34]} 19. Ba2 {[%clk 0:01:22]}  Qxb2 {[%clk 0:02:32]} 20. f4 {[%clk 0:01:22]}  Qxc2 {[%clk 0:02:14]} 21. Rxc2 {[%clk 0:01:21]}  Ng6 {[%clk 0:02:15]} 22. f5 {[%clk 0:01:15]}  exf5 {[%clk 0:02:10]} 23. exf5 {[%clk 0:01:15]}  Ne5 {[%clk 0:02:09]} 24. Bg5 {[%clk 0:01:13]}  Rfc8 {[%clk 0:02:05]} 25. Rdd2 {[%clk 0:00:58]}  h6 {[%clk 0:01:53]} 26. Bxf6 {[%clk 0:00:58]}  Bxf6 {[%clk 0:01:54]} 27. Nd5 {[%clk 0:00:58]}  Bg5 {[%clk 0:01:51]} 28. Re2 {[%clk 0:00:53]}  Rxc2 {[%clk 0:01:48]} 29. Rxc2 {[%clk 0:00:53]}  Rb7 {[%clk 0:01:39]} 30. g3 {[%clk 0:00:53]}  Nd3 {[%clk 0:01:32]} 31. h4 {[%clk 0:00:50]}  Bf6 {[%clk 0:01:28]} 32. Nxf6+ {[%clk 0:00:28]}  gxf6 {[%clk 0:01:29]} 33. Bd5 {[%clk 0:00:27]}  Rb1+ {[%clk 0:01:24]} 34. Kh2 {[%clk 0:00:25]}  Nb4 {[%clk 0:01:21]} 35. Rc8+ {[%clk 0:00:21]}  Kg7 {[%clk 0:01:21]} 36. Bg2 {[%clk 0:00:08]}  a5 {[%clk 0:01:17]} 37. Ra8 {[%clk 0:00:08]}  Ra1 {[%clk 0:01:12]} 38. Kh3 {[%clk 0:00:08]}  a4 {[%clk 0:01:11]} 39. Rb8 {[%clk 0:00:08]}  Nc2 {[%clk 0:01:06]} 40. Bd5 {[%clk 0:00:07]}  Rd1 {[%clk 0:01:04]} 41. Bc4 {[%clk 0:00:04]}  Ne3 {[%clk 0:01:02]} 42. Ba2 {[%clk 0:00:03]}  Rh1# {[%clk 0:00:58]} 0-1


[Site "https://www.chess.com"]

[Event "Titled Tuesday Blitz February 07 Late 2023"]
[White "Torres Dominguez, David"]
[Black "Li, Hui"]
[WhiteFideId "2220857"]
[BlackFideId "15400310"]
[WhiteElo "1994"]
[BlackElo "1963"]
[Result "1-0"]
[Round "09"]
[TimeControl "180+2"]
[Date "2023.02.07"]
[WhiteClock "0:00:37"]
[BlackClock "0:00:04"]

1. e4 {[%clk 0:02:52]}  e5 {[%clk 0:03:00]} 2. Bc4 {[%clk 0:02:50]}  Nf6 {[%clk 0:03:00]} 3. Nc3 {[%clk 0:02:50]}  Nc6 {[%clk 0:02:59]} 4. d3 {[%clk 0:02:49]}  Na5 {[%clk 0:02:59]} 5. Bb3 {[%clk 0:02:48]}  Bb4 {[%clk 0:02:45]} 6. f4 {[%clk 0:02:34]}  d5 {[%clk 0:02:27]} 7. fxe5 {[%clk 0:02:32]}  Nxe4 {[%clk 0:01:26]} 8. dxe4 {[%clk 0:02:28]}  Qh4+ {[%clk 0:01:21]} 9. Kf1 {[%clk 0:02:11]}  dxe4 {[%clk 0:00:57]} 10. Nd5 {[%clk 0:02:02]}  Bc5 {[%clk 0:00:43]} 11. g3 {[%clk 0:01:52]}  Qd8 {[%clk 0:00:38]} 12. Be3 {[%clk 0:01:52]}  Bxe3 {[%clk 0:00:36]} 13. Nxe3 {[%clk 0:01:51]}  O-O {[%clk 0:00:27]} 14. Qxd8 {[%clk 0:01:47]}  Rxd8 {[%clk 0:00:28]} 15. Ne2 {[%clk 0:01:39]}  Bh3+ {[%clk 0:00:28]} 16. Kf2 {[%clk 0:01:32]}  Nxb3 {[%clk 0:00:28]} 17. axb3 {[%clk 0:01:30]}  Re8 {[%clk 0:00:28]} 18. Nf4 {[%clk 0:01:25]}  Be6 {[%clk 0:00:21]} 19. Rhd1 {[%clk 0:01:23]}  a6 {[%clk 0:00:20]} 20. b4 {[%clk 0:01:19]}  Rad8 {[%clk 0:00:06]} 21. h4 {[%clk 0:01:18]}  Bc8 {[%clk 0:00:03]} 22. Rxd8 {[%clk 0:01:17]}  Rxd8 {[%clk 0:00:04]} 23. Rd1 {[%clk 0:01:15]}  Re8 {[%clk 0:00:03]} 24. g4 {[%clk 0:00:58]}  h6 {[%clk 0:00:03]} 25. g5 {[%clk 0:00:58]}  hxg5 {[%clk 0:00:03]} 26. hxg5 {[%clk 0:00:58]}  Be6 {[%clk 0:00:03]} 27. b3 {[%clk 0:00:57]}  Kf8 {[%clk 0:00:03]} 28. Rd4 {[%clk 0:00:56]}  c6 {[%clk 0:00:03]} 29. Rxe4 {[%clk 0:00:55]}  Rd8 {[%clk 0:00:04]} 30. Ne2 {[%clk 0:00:51]}  Rd2 {[%clk 0:00:04]} 31. Rd4 {[%clk 0:00:50]}  Rxd4 {[%clk 0:00:03]} 32. Nxd4 {[%clk 0:00:50]}  Bd7 {[%clk 0:00:04]} 33. Kg3 {[%clk 0:00:48]}  Ke7 {[%clk 0:00:05]} 34. Kf4 {[%clk 0:00:48]}  b6 {[%clk 0:00:05]} 35. Nef5+ {[%clk 0:00:48]}  Kf8 {[%clk 0:00:04]} 36. Nd6 {[%clk 0:00:48]}  c5 {[%clk 0:00:04]} 37. bxc5 {[%clk 0:00:48]}  bxc5 {[%clk 0:00:05]} 38. N4f5 {[%clk 0:00:48]}  a5 {[%clk 0:00:03]} 39. Nb7 {[%clk 0:00:47]}  a4 {[%clk 0:00:03]} 40. bxa4 {[%clk 0:00:47]}  Bxa4 {[%clk 0:00:03]} 41. c3 {[%clk 0:00:45]}  c4 {[%clk 0:00:03]} 42. Nfd6 {[%clk 0:00:44]}  Bb3 {[%clk 0:00:03]} 43. Na5 {[%clk 0:00:44]}  Bc2 {[%clk 0:00:02]} 44. Naxc4 {[%clk 0:00:44]}  Ke7 {[%clk 0:00:02]} 45. Ne3 {[%clk 0:00:45]}  Bd3 {[%clk 0:00:02]} 46. Ndf5+ {[%clk 0:00:45]}  Kf8 {[%clk 0:00:01]} 47. Nd6 {[%clk 0:00:41]}  Ke7 {[%clk 0:00:01]} 48. Nef5+ {[%clk 0:00:41]}  Kf8 {[%clk 0:00:01]} 49. c4 {[%clk 0:00:42]}  g6 {[%clk 0:00:01]} 50. Nd4 {[%clk 0:00:40]}  Ke7 {[%clk 0:00:01]} 51. Ke3 {[%clk 0:00:40]}  Bf1 {[%clk 0:00:01]} 52. Ne4 {[%clk 0:00:38]}  Kd7 {[%clk 0:00:02]} 53. Nd6 {[%clk 0:00:37]}  Ke7 {[%clk 0:00:02]} 54. Ne4 {[%clk 0:00:36]}  Bg2 {[%clk 0:00:02]} 55. c5 {[%clk 0:00:36]}  Kd7 {[%clk 0:00:02]} 56. c6+ {[%clk 0:00:35]}  Kc7 {[%clk 0:00:03]} 57. Nd6 {[%clk 0:00:35]}  Bxc6 {[%clk 0:00:02]} 58. Nxc6 {[%clk 0:00:35]}  Kxc6 {[%clk 0:00:03]} 59. Nxf7 {[%clk 0:00:35]}  Kd5 {[%clk 0:00:04]} 60. Kf4 {[%clk 0:00:35]}  Ke6 {[%clk 0:00:05]} 61. Nh8 {[%clk 0:00:36]}  Ke7 {[%clk 0:00:03]} 62. Nxg6+ {[%clk 0:00:36]}  Kf7 {[%clk 0:00:04]} 63. Nh4 {[%clk 0:00:36]}  Ke6 {[%clk 0:00:04]} 64. Nf5 {[%clk 0:00:37]} 1-0


[Site "https://www.chess.com"]